Workbook

Sheet Bus Exp
B1: Semi-Annual ending June 30,2024 | D1: Annual ending December 31, 2023 | F1: 18 month Total | H1: Avg Mnthly Semi Annual | I1: Avg Mnthly Annual | J1: Avg Mnthly 18 months
A2: 1099 | B2: 5852 | D2: 42598 | F2: 48450 | H2: =B2/6 -> 975.3333333 | I2: =D2/12 -> 3549.833333 | J2: =F2/18 -> 2691.666667
A3: Auto Expense | B3: 12427.12 | D3: 29716.51 | F3: 41863.63 | H3: =B3/6 -> 2071.186667 | I3: =D3/12 -> 2476.375833 | J3: =F3/18 -> 2325.757222
A4: Blueprinters | B4: 62.53 | D4: 21.85 | F4: 84.38 | H4: 10.42166667 | I4: 1.820833333 | J4: 4.687777778
A5: Dump Fees | D5: 22.05 | F5: 22.05 | H5: 0 | I5: 1.8375 | J5: 1.225
A6: Insurance | B6: 6763.41 | D6: 18803.55 | F6: 25566.96 | H6: 1127.235 | I6: 1566.9625 | J6: 1420.386667
A7: Licenses | B7: 1206 | D7: 2021 | F7: 3227 | H7: 201 | I7: 168.4166667 | J7: 179.2777778
A8: Material | B8: 73117.5 | D8: 161068.16 | F8: 234185.66 | H8: 12186.25 | I8: 13422.34667 | J8: 13010.31444
A9: Repairs & Maintenance | D9: 1727 | F9: 1727 | H9: 0 | I9: 143.9166667 | J9: 95.94444444
A10: Office | B10: 2280.31 | D10: 4412.88 | F10: 6693.19 | H10: 380.0516667 | I10: 367.74 | J10: 371.8438889
A11: Payroll | B11: 91656.84 | D11: 118985.76 | F11: 210642.6 | H11: 15276.14 | I11: 9915.48 | J11: 11702.36667
A12: Total Expenses | B12: =SUM(B2:B11) -> 193365.71 | D12: =SUM(D2:D11) -> 379376.76 | F12: =SUM(F2:F11) -> 572462.47 | H12: 32227.61833 | I12: 31614.73 | J12: 31803.47056
A15: Monthly Expenses Avg. | B15: =AVERAGE(H12:J12) -> 31881.93963
A16: Monthly Expenses High | B16: =MAX(H12:J12) -> 32227.61833
A17: Monthly Expenses Low | B17: =MIN(H12:J12) -> 31614.73
A20: Below are listed totals from the most typical business expenses, taken from bank statements for the first 8 mos of the year.
A21: It is not all inclusive, but does give support to the numbers claimed in business expenses.
A23: El Camino | B23: 13800.05 | D23: Material | F23: Material | H23: =SUMIF($D$23:$D$63,F23,$B$23:$B$63) -> 105859.04 | I23: =H23/8 -> 13232.38
A24: Best Egg | B24: 3055.12 | D24: Loan | F24: Loan | H24: =SUMIF($D$23:$D$63,F24,$B$23:$B$63) -> 22271.78 | I24: =H24/8 -> 2783.9725
A25: Home Depot | B25: 110.22 | D25: Material | F25: Fuel | H25: 13940.05 | I25: 1742.50625
A26: Lowe's | B26: 1090.28 | D26: Material | F26: Payroll | H26: 126146.14 | I26: 15768.2675
A27: Blake's | B27: 320.53 | D27: Material | F27: 1099 Contractor | H27: 7631.09 | I27: 953.88625
A28: Tractor Supply | B28: 473.58 | D28: Material | F28: Misc Auto (Maint) | H28: 2359.6 | I28: 294.95
A29: Blueprinter | B29: 76.12 | D29: Blueprinter | F29: Insurance | H29: 5107.74 | I29: 638.4675
A30: State Farm | B30: 2441.6 | D30: Insurance | F30: Vehicle Pmts | H30: 6375.62 | I30: 796.9525
A31: USPS | B31: 35.01 | D31: Postage | F31: Taxes | H31: 0 | I31: 0
A32: Kritz | B32: 1175.86 | D32: 1099 Contractor | F32: Cell phones | H32: 2042.84 | I32: 255.355
A33: Golden Hills | B33: 3476.07 | D33: Fuel
A34: Templeton | B34: 2295.98 | D34: Fuel
A35: Headway | B35: 19216.66 | D35: Loan
A36: Verizon | B36: 2042.84 | D36: Cell phones
A37: Staples | B37: 202.84 | D37: Office Supplies
A38: Third Base | B38: 8168 | D38: Fuel
A39: ABC Supply | B39: 85155.4 | D39: Material | I39: =SUM(I23:I38) -> 36466.7375
A40: Barrett Business | B40: 120293.62 | D40: Payroll
A41: Adler Belmont | B41: 2351.05 | D41: Insurance
A42: Wells Fargo | B42: 6375.62 | D42: Vehicle Pmts
A43: Kritz Trucking | B43: 5009.84 | D43: 1099 Contractor | H43: =SUM(H23:H33) -> 291733.9 | I43: =H43/8 -> 36466.7375
A44: Cipriano Cuara | B44: 5852.52 | D44: Payroll
A45: Discover | B45: 740
A46: State Farm | B46: 315.09 | D46: Insurance
A47: Cheryl Hernandez (Tax) | B47: 400
A48: Busy Maids | B48: 350
A49: DMV | B49: 526
A50: ERAS Construction | B50: 1445.39 | D50: 1099 Contractor
A51: ECBS | B51: 4908.98 | D51: Material
A52: Capital One | B52: 2569.4
A53: Smeltzers Car Care (2001 Chevy) | B53: 2359.6 | D53: Misc Auto (Maint)
A54: CA DMV Kel Albtsn Psrbl | B54: 705
A55: US Treasury | B55: 1500
A56: Akshar Shipping | B56: 288.42
A57: US Treasury | B57: 500
